bitfinex/quotes_ETHUSD_20250524
["timestamp","ask_amount","ask_price","bid_price","bid_amount"]
[1748092055766,3.91251613,2555.9,2555.8,10.60322311]
[1748092057782,3.91251613,2555.9,2555.8,8.7744]
[1748092058652,3.91251613,2555.9,2555.8,8.0]
[1748092059400,3.91312854,2555.5,2555.4,0.7758]
[1748092059602,3.91343482,2555.3,2555.1,0.8258]
[1748092059810,3.91358797,2555.2,2555.1,0.8258]
[1748092060310,3.91358797,2555.2,2555.1,8.05]
[1748092060669,5.08762069,2555.2,2555.1,0.05]
[1748092061808,3.91358797,2555.2,2555.1,1.87882311]
[1748092062025,3.91358797,2555.2,2555.1,9.87882311]
[1748092063816,3.91358797,2555.2,2555.1,8.05]
[1748092064172,3.91358797,2555.2,2555.1,0.05]
[1748092064502,4.69629228,2555.2,2555.1,0.05]
[1748092066422,3.91358797,2555.2,2555.1,0.05]
[1748092068285,15.64658797,2555.2,2555.1,0.05]
[1748092070116,3.91358797,2555.2,2555.1,0.8608]
[1748092075119,3.91358797,2555.2,2555.1,0.05]
[1748092080346,5.86969228,2555.2,2555.1,0.05]
[1748092082271,3.91358797,2555.2,2555.1,0.05]
[1748092088285,4.69788797,2555.2,2555.1,0.05]
[1748092089333,16.43288797,2555.2,2555.1,0.05]
[1748092089567,15.64858797,2555.2,2555.1,0.05]
[1748092089963,3.91358797,2555.2,2555.1,0.8048]
[1748092090153,15.64858797,2555.2,2555.1,0.8048]
[1748092090567,15.64858797,2555.2,2555.1,0.05]
[1748092092777,3.91358797,2555.2,2555.1,1.88641686]
[1748092092955,15.64858797,2555.2,2555.1,1.88641686]
[1748092094269,15.64858797,2555.2,2555.1,0.05]
[1748092095748,3.91358797,2555.2,2555.1,0.05]
[1748092107501,3.91358797,2555.2,2555.1,0.8628]
[1748092107675,3.91358797,2555.2,2555.1,9.93272169]
[1748092109277,3.91348622,2555.3,2555.1,9.93272169]
[1748092109517,3.91348622,2555.3,2555.2,1.83641686]
[1748092109697,3.91320961,2555.5,2555.3,0.8128]
[1748092109877,3.91320961,2555.5,2555.4,16.65141686]
[1748092110486,3.91320961,2555.5,2555.3,1.18971386]
[1748092110487,3.91328167,2555.4,2555.3,9.18971386]
[1748092110822,3.91328167,2555.4,2555.3,8.8128]
[1748092124538,3.91358797,2555.2,2555.1,8.05]
[1748092124835,3.91358797,2555.2,2555.1,14.816]
[1748092124991,3.91358797,2555.2,2555.1,0.05]
[1748092128564,15.64658797,2555.2,2555.1,0.05]
[1748092129151,3.91358797,2555.2,2555.1,9.88641686]
[1748092129313,3.91358797,2555.2,2555.1,8.05]
[1748092129511,3.91358797,2555.2,2555.1,0.05]
[1748092134632,15.64758797,2555.2,2555.1,2.65831686]
[1748092134851,15.64758797,2555.2,2555.1,5.20074855]
[1748092136361,4.72823879,2555.7,2555.1,5.20074855]
[1748092136660,3.91328167,2555.4,2555.3,1.83641686]
[1748092140166,3.91358797,2555.2,2555.1,9.88641686]
[1748092140358,3.91358797,2555.2,2555.1,8.05]
[1748092140745,15.64758797,2555.2,2555.1,8.05]
[1748092140947,17.99502093,2555.2,2555.1,8.05]
[1748092141541,18.82102093,2555.2,2555.1,8.05]
[1748092142670,15.64758797,2555.2,2555.1,8.05]
[1748092143371,3.91358797,2555.2,2555.1,9.88641686]
[1748092145560,3.9135667,2555.3,2555.1,8.05]
[1748092145766,3.9135667,2555.3,2555.2,1.83641686]
[1748092146679,3.91332041,2555.4,2555.2,2.66941686]
[1748092146842,3.91332041,2555.4,2555.3,15.03894169]
[1748092147346,3.91332041,2555.4,2555.3,14.767]
[1748092148775,3.91358797,2555.2,2555.1,8.05]
[1748092154682,3.91358797,2555.2,2555.1,0.05]
[1748092159045,4.73088797,2555.2,2555.1,0.05]
[1748092159384,6.85035025,2555.2,2555.1,0.05]
[1748092174296,21.12913652,2555.2,2555.1,0.05]
[1748092174492,19.29271966,2555.2,2555.1,0.05]
[1748092175796,25.79613652,2555.2,2555.1,0.05]
[1748092180800,37.53313652,2555.2,2555.1,0.05]
[1748092183803,19.29271966,2555.2,2555.1,0.05]
[1748092184013,47.55013652,2555.2,2555.1,0.05]
[1748092184915,52.21713652,2555.2,2555.1,0.05]
[1748092185415,77.12013652,2555.2,2555.1,0.05]
[1748092189488,77.31824969,2555.2,2555.1,0.05]
[1748092189914,7.012,2554.9,2554.1,0.05]
[1748092190118,3.91512019,2554.2,2554.1,0.05]
[1748092191618,3.91512019,2554.2,2554.1,0.8602]
[1748092195639,3.91512019,2554.2,2554.1,8.8602]
[1748092196818,3.91512019,2554.2,2554.1,2.69661686]
[1748092197018,3.91512019,2554.2,2554.1,2.96627855]
[1748092197863,3.91512019,2554.2,2554.1,0.8602]
[1748092198636,3.91512019,2554.2,2554.1,2.69661686]
[1748092200067,1.23447808,2555.7,2554.1,1.88641686]
[1748092200265,3.9130827,2555.6,2555.5,0.787]
[1748092200871,3.9130827,2555.6,2555.5,8.787]
[1748092201222,5.14733052,2555.7,2555.5,8.0]
[1748092201420,3.91283816,2555.7,2555.6,10.62341686]
[1748092202421,3.91283816,2555.7,2555.6,12.83742963]
[1748092202645,3.91260399,2555.9,2555.8,0.787]
[1748092202846,1.97123647,2556.0,2555.9,0.787]
[1748092203101,5.88359953,2556.0,2555.9,0.787]
[1748092204053,5.88359953,2556.0,2555.9,8.787]
[1748092204256,3.91236306,2556.0,2555.9,8.787]
[1748092204847,3.91236306,2556.0,2555.9,11.31754169]
[1748092205853,3.91222865,2556.1,2555.9,11.31754169]
[1748092206053,3.91222865,2556.1,2556.0,1.83641686]
[1748092207594,3.91236306,2556.0,2555.9,11.31754169]
[1748092207799,3.91236306,2556.0,2555.9,0.787]
[1748092215286,3.91282231,2555.7,2555.6,0.8253]
[1748092216765,3.91312854,2555.5,2555.4,8.8253]
[1748092218403,3.91308067,2555.6,2555.4,8.8253]
[1748092218608,3.91297542,2555.6,2555.5,1.83641686]
[1748092218908,3.91297542,2555.6,2555.5,4.40848855]
[1748092227541,3.91282231,2555.7,2555.5,4.40848855]
[1748092227750,15.64478,2555.8,2555.6,8.0]
[1748092228264,3.91282231,2555.7,2555.6,8.0]
[1748092231869,10.04736941,2556.3,2555.7,0.8004]
[1748092232071,3.91245936,2556.0,2555.9,1.83641686]
[1748092232367,3.91245936,2556.0,2555.9,17.69481686]
[1748092244413,3.91245936,2556.0,2555.9,16.89441686]
[1748092244825,3.91245936,2556.0,2555.9,1.83641686]
[1748092245486,3.91245936,2556.0,2555.8,22.893]
[1748092245487,3.91251613,2555.9,2555.8,22.893]
[1748092247787,3.91266922,2555.8,2555.7,1.83641686]
[1748092249614,3.91251613,2555.9,2555.7,1.83641686]
[1748092249910,3.91251613,2555.9,2555.8,8.0]
[1748092254319,3.91282231,2555.7,2555.6,9.83641686]
[1748092254509,3.91259153,2555.9,2555.6,9.83641686]
[1748092254905,15.64244072,2556.0,2555.8,1.83641686]
[1748092256247,3.91251613,2555.9,2555.8,1.83641686]
[1748092256546,3.91251613,2555.9,2555.8,2.90007855]
[1748092256772,3.91229101,2556.1,2555.8,2.90007855]
[1748092257059,3.91239972,2556.0,2555.8,1.06366169]
[1748092258345,3.91239972,2556.0,2555.9,1.83641686]
[1748092260009,3.91251613,2555.9,2555.8,1.06366169]
[1748092260210,3.91251613,2555.9,2555.8,8.37487472]
[1748092262052,3.91251613,2555.9,2555.8,8.0]
[1748092262259,3.91227257,2556.1,2555.9,0.766]
[1748092262460,3.91236306,2556.0,2555.9,1.83641686]
[1748092262776,4.73065584,2556.3,2555.7,25.49541686]
[1748092262777,3.91266922,2555.8,2555.7,25.49541686]
[1748092262956,3.91266922,2555.8,2555.7,28.96769585]
[1748092263116,3.91266922,2555.8,2555.7,22.893]
[1748092263312,3.91266922,2555.8,2555.7,23.26805446]
[1748092265467,3.91266922,2555.8,2555.7,22.893]
[1748092265690,3.91328167,2555.4,2555.3,18.85850157]
[1748092265826,11.73,2556.1,2555.3,18.85850157]
[1748092265827,0.8125,2556.4,2555.4,0.7813]
[1748092266166,0.8125,2556.4,2555.9,1.83641686]
[1748092266167,3.91247251,2556.0,2555.9,1.83641686]
[1748092266366,0.8125,2556.4,2555.9,1.83641686]
[1748092266572,3.91236306,2556.0,2555.9,1.83641686]
[1748092267842,3.91226552,2556.1,2555.9,1.83641686]
[1748092268185,3.91221,2556.1,2556.0,0.98364169]
[1748092271782,3.91236306,2556.0,2555.9,1.83641686]
[1748092272645,3.91236306,2556.0,2555.9,2.21127887]
[1748092275590,3.91236306,2556.0,2555.9,1.83641686]
[1748092279912,3.91236306,2556.0,2555.9,2.21127345]
[1748092280896,3.91236306,2556.0,2555.9,0.37485659]
[1748092281100,16.49958286,2556.0,2555.9,0.37485659]
[1748092281303,3.91282231,2555.7,2555.6,1.96650157]
[1748092286019,4.67042231,2555.7,2555.6,1.96650157]
[1748092286825,4.67042231,2555.7,2555.1,9.83641686]
[1748092286826,3.91358797,2555.2,2555.1,9.83641686]
[1748092287025,3.91358797,2555.2,2555.1,12.5098087]
[1748092290340,3.91345765,2555.3,2555.1,12.5098087]
[1748092291439,3.91330212,2555.4,2555.1,12.5098087]
[1748092291440,3.91358797,2555.2,2555.1,12.5098087]
[1748092295440,3.91358797,2555.2,2555.1,1.83641686]
[1748092302276,3.91358797,2555.2,2554.9,8.0]
[1748092302447,3.91389432,2555.0,2554.9,9.83641686]
[1748092302916,3.91389432,2555.0,2554.9,1.83641686]
[1748092314171,3.91435393,2554.7,2554.6,0.7844]
[1748092314410,3.91435393,2554.7,2554.6,1.83641686]
[1748092326864,3.91422726,2554.8,2554.7,8.0]
[1748092327169,3.91374114,2555.1,2554.8,0.7991]
[1748092327334,3.91374114,2555.1,2555.0,1.83641686]
[1748092334327,3.91374114,2555.1,2555.0,11.68226855]
[1748092334677,3.91366267,2555.2,2555.1,8.0]
[1748092334974,3.91374114,2555.1,2555.0,1.84585169]
[1748092335147,3.91374114,2555.1,2555.0,0.7823]
[1748092336036,3.91404751,2554.9,2554.8,0.805]
[1748092336236,3.91404751,2554.9,2554.8,10.64141686]
[1748092337134,3.91404751,2554.9,2554.8,11.01597021]
[1748092338174,3.91404751,2554.9,2554.8,10.64141686]
[1748092338480,3.91404751,2554.9,2554.8,12.75349879]
[1748092339664,3.91380585,2555.1,2554.8,4.75349879]
[1748092339973,3.91389608,2555.0,2554.8,2.91708193]
[1748092340978,3.91389608,2555.0,2554.9,1.83641686]
[1748092348381,3.91389608,2555.0,2554.9,9.83641686]
[1748092349861,3.91384253,2555.1,2554.9,11.02965248]
[1748092350442,3.91389432,2555.0,2554.9,11.02965248]
[1748092350960,3.91389432,2555.0,2554.9,11.40418976]
[1748092351784,3.91389432,2555.0,2554.9,11.02965248]
[1748092354590,3.91389432,2555.0,2554.9,11.40453832]
[1748092355198,3.91389432,2555.0,2554.9,10.2113027]
[1748092355385,3.91389432,2555.0,2554.9,2.2113027]
[1748092356197,3.91389432,2555.0,2554.9,1.83641686]
[1748092358289,4.72964751,2554.9,2554.7,1.83641686]
[1748092358685,3.91420072,2554.8,2554.7,9.83641686]
[1748092360215,3.91420072,2554.8,2554.7,1.83641686]
[1748092365235,3.91420072,2554.8,2554.3,8.0]
[1748092365236,3.91450716,2554.6,2554.5,1.83641686]
[1748092365547,3.91481365,2554.4,2554.3,1.83641686]
[1748092366184,3.91481365,2554.4,2554.1,0.05]
[1748092366185,3.91512019,2554.2,2554.1,0.05]
[1748092366429,4.74572019,2554.2,2554.1,1.88641686]
[1748092366586,16.48072019,2554.2,2554.1,1.88641686]
[1748092375814,18.24451424,2554.2,2554.1,1.88641686]
[1748092379357,18.24451424,2554.2,2554.1,0.05]
[1748092380846,18.21221424,2554.2,2554.1,0.05]
[1748092382340,20.55921424,2554.2,2554.1,0.05]
[1748092382641,18.21221424,2554.2,2554.1,0.05]
[1748092392461,20.55921424,2554.2,2554.1,0.05]
[1748092396058,30.60658365,2554.2,2554.1,0.05]
[1748092396658,3.91665361,2553.2,2553.1,0.05]
[1748092396862,15.65865361,2553.2,2553.1,0.05]
[1748092397263,16.43485361,2553.2,2553.1,0.05]
[1748092400425,31.15185361,2553.2,2553.1,0.05]
[1748092400633,4.69285361,2553.2,2553.1,0.05]
[1748092400938,31.15185361,2553.2,2553.1,0.05]
[1748092401763,33.18960779,2553.2,2553.1,0.05]
[1748092402964,41.18960779,2553.2,2553.1,0.05]
[1748092403767,41.19160779,2553.2,2553.1,0.05]
[1748092403971,3.91757423,2552.6,2552.5,2.65531686]
[1748092404666,3.91726883,2552.8,2552.6,0.8189]
[1748092404872,14.78185482,2554.0,2552.9,0.7663]
[1748092405021,14.78185482,2554.0,2553.1,0.7663]
[1748092405022,3.91658247,2553.3,2553.1,0.7663]
[1748092405226,3.91658247,2553.3,2553.2,2.60271686]
[1748092410388,3.91658247,2553.3,2553.1,8.0]
[1748092410389,3.91665361,2553.2,2553.1,8.0]
[1748092416384,3.91680701,2553.1,2553.0,0.7663]
[1748092420665,3.91696043,2553.0,2552.9,9.83641686]
[1748092420896,3.91711387,2552.9,2552.8,0.8137]
[1748092421091,3.91742077,2552.7,2552.6,2.65011686]
[1748092423031,15.66142077,2552.7,2552.6,2.65011686]
[1748092424827,3.91742077,2552.7,2552.6,2.65011686]
[1748092425028,15.66142077,2552.7,2552.6,2.65011686]
[1748092426037,15.66142077,2552.7,2552.6,1.83641686]
[1748092426896,15.66142077,2552.7,2552.6,2.66031686]
[1748092428039,15.66142077,2552.7,2552.6,1.83641686]
[1748092429110,3.91742077,2552.7,2552.6,1.83641686]
[1748092429410,15.66142077,2552.7,2552.6,2.66031686]
[1748092429735,15.66142077,2552.7,2552.6,1.83641686]
[1748092432072,15.66242077,2552.7,2552.6,1.83641686]
[1748092434550,3.91757423,2552.6,2552.4,0.8239]
[1748092434716,3.91772771,2552.5,2552.4,0.8239]
[1748092435828,3.91772771,2552.5,2552.4,10.66031686]
[1748092437251,3.91772771,2552.5,2552.4,9.83641686]
[1748092439261,15.66272771,2552.5,2552.4,9.83641686]
[1748092439614,15.66184327,2553.1,2552.5,0.8236]
[1748092439862,3.91696043,2553.0,2552.8,1.83641686]
[1748092440148,3.91711387,2552.9,2552.8,1.83641686]
[1748092444038,15.66211387,2552.9,2552.8,1.83641686]
[1748092450048,3.91711387,2552.9,2552.8,1.83641686]
[1748092450267,15.66211387,2552.9,2552.8,1.83641686]
[1748092451779,3.91711387,2552.9,2552.8,1.83641686]
[1748092452983,3.91701328,2553.0,2552.8,1.83641686]
[1748092453131,15.66196043,2553.0,2552.9,0.8153]
[1748092453488,3.91682034,2553.1,2552.9,8.8153]
[1748092453689,3.91688946,2553.1,2553.0,1.83641686]
[1748092454046,3.91688946,2553.1,2553.0,9.83641686]
[1748092454275,3.9165353,2553.3,2553.0,11.67283372]
[1748092454443,3.91601286,2553.7,2553.0,11.67283372]
[1748092454444,3.91601482,2553.7,2553.3,8.8153]
[1748092454642,3.91588675,2553.7,2553.6,1.83641686]
[1748092454964,0.8067,2554.2,2553.6,1.83641686]
[1748092455153,0.8067,2554.2,2553.7,8.8258]
[1748092455154,3.9157817,2553.8,2553.7,8.8258]
[1748092460221,3.91432156,2554.8,2553.7,9.3758]
[1748092460361,3.91555353,2554.0,2553.7,0.8258]
[1748092460684,3.91555353,2554.0,2553.9,1.83641686]
[1748092461470,15.6582958,2554.1,2553.9,1.83641686]
[1748092461471,15.6584038,2554.1,2553.9,1.83641686]
[1748092461672,15.6574038,2554.1,2553.9,1.83641686]
[1748092461886,3.91542678,2554.0,2553.9,1.83641686]
[1748092462707,15.65732226,2554.1,2553.9,1.83641686]
[1748092462882,15.65732226,2554.1,2553.9,2.10263855]
[1748092463900,3.91542678,2554.0,2553.9,2.10263855]
[1748092464077,3.91542678,2554.0,2553.9,1.83641686]
[1748092471667,3.91528443,2554.1,2553.9,1.83641686]
[1748092472704,11.74,2554.2,2553.9,1.83641686]
[1748092473006,3.91521051,2554.2,2554.1,1.83641686]
[1748092473228,10.04736941,2554.8,2554.1,1.83641686]
[1748092473229,10.04736941,2554.8,2554.2,8.8318]
[1748092473378,4.7617477,2554.9,2554.7,1.83641686]
[1748092473584,3.91432723,2554.8,2554.7,1.83641686]
[1748092475019,3.91481365,2554.4,2554.3,9.83641686]
[1748092478818,15.65473938,2554.5,2554.3,9.83641686]
[1748092479026,3.9146604,2554.5,2554.3,9.83641686]
[1748092479212,15.65381365,2554.4,2554.3,9.83641686]
[1748092479587,11.739,2554.4,2554.3,9.83641686]
[1748092479817,11.739,2554.4,2554.3,10.64281686]
[1748092480116,11.739,2554.7,2554.3,10.64281686]
[1748092480275,3.91472975,2554.5,2554.3,10.64281686]
[1748092480478,3.91472975,2554.5,2554.3,13.17729855]
[1748092480723,3.91481365,2554.4,2554.3,13.17729855]
[1748092483628,3.91473743,2554.5,2554.3,13.17729855]
[1748092483799,3.91481365,2554.4,2554.3,13.17729855]
[1748092486893,3.91481365,2554.4,2554.3,12.37089855]
[1748092487087,3.91481365,2554.4,2554.3,8.0]
[1748092495555,11.738,2554.5,2553.9,0.8006]
[1748092495713,3.91573341,2553.8,2553.7,0.8006]
[1748092496091,15.65373341,2553.8,2553.7,8.0]
[1748092496235,15.65373341,2553.8,2553.7,11.94999309]
[1748092496971,3.91528051,2554.1,2553.7,11.94999309]
[1748092497176,11.738,2554.0,2553.7,11.94999309]
[1748092497363,3.91570977,2553.9,2553.8,1.83641686]
[1748092499333,3.91570977,2553.9,2553.7,9.83641686]
[1748092499334,3.91573341,2553.8,2553.7,9.83641686]
[1748092503101,3.91573341,2553.8,2553.1,8.15478592]
[1748092503102,3.91573341,2553.8,2553.1,4.44455376]
[1748092503253,3.91634683,2553.4,2553.3,1.83641686]
[1748092503857,3.91665361,2553.2,2553.1,18.97065725]
[1748092504272,3.91665361,2553.2,2553.1,26.97065725]
[1748092504989,3.91665361,2553.2,2553.1,1.97178812]
[1748092506392,6.74709144,2553.2,2553.1,1.97178812]
[1748092506997,6.74709144,2553.2,2552.8,8.0]
[1748092506998,3.91711387,2552.9,2552.8,9.97178812]
[1748092507296,15.65711387,2552.9,2552.8,9.97178812]
[1748092508295,15.65711387,2552.9,2552.8,1.97178812]
[1748092508606,16.44951387,2552.9,2552.8,1.97178812]
[1748092508898,18.4861634,2552.9,2552.8,1.97178812]
[1748092510169,18.4871634,2552.9,2552.8,1.97178812]
[1748092511157,6.7461634,2552.9,2552.8,1.97178812]
[1748092511357,16.45051387,2552.9,2552.8,1.97178812]
[1748092513270,16.45051387,2552.9,2552.2,1.83641686]
[1748092513271,3.91803471,2552.3,2552.2,1.83641686]
[1748092513483,15.66103471,2552.3,2552.2,1.83641686]
[1748092514828,3.91736903,2552.8,2552.2,1.83641686]
[1748092515121,3.91757982,2552.6,2552.3,10.22175029]
[1748092515284,3.91757982,2552.6,2552.3,2.22175029]
[1748092515485,3.91757982,2552.6,2552.3,0.7703]
[1748092516126,3.91777531,2552.5,2552.3,0.7703]
[1748092516422,3.91777531,2552.5,2552.4,1.83641686]
[1748092516608,11.744,2552.6,2552.4,1.83641686]
[1748092516782,15.66164852,2552.6,2552.4,1.83641686]
[1748092517321,3.91764852,2552.6,2552.4,1.83641686]
[1748092517622,3.91772771,2552.5,2552.4,2.09708855]
[1748092517821,3.91799373,2552.4,2552.2,1.83641686]
[1748092518028,3.9178812,2552.4,2552.2,9.83641686]
[1748092518603,15.66161998,2552.6,2552.2,9.83641686]
[1748092518604,3.91803471,2552.3,2552.2,9.83641686]
[1748092519519,3.91794744,2552.4,2552.2,9.83641686]
[1748092519702,3.91803471,2552.3,2552.2,9.83641686]
[1748092520828,3.91803471,2552.3,2552.2,1.83641686]
[1748092521052,3.91803471,2552.3,2552.1,15.7223]
[1748092521053,3.91818822,2552.2,2552.1,0.25]
[1748092521203,15.66318822,2552.2,2552.1,0.25]
[1748092521410,5.95687051,2552.2,2552.1,0.25]
[1748092521613,15.66318822,2552.2,2552.1,0.25]
[1748092524306,16.46878822,2552.2,2552.1,0.25]
[1748092525246,15.66318822,2552.2,2552.1,0.25]
[1748092525446,3.91818822,2552.2,2552.1,0.25]
[1748092525607,15.66418822,2552.2,2552.1,0.25]
[1748092529760,3.91818822,2552.2,2552.1,0.25]
[1748092529958,15.66518822,2552.2,2552.1,0.25]
[1748092532853,17.70112051,2552.2,2552.1,0.25]
[1748092534627,15.66518822,2552.2,2552.1,0.25]
[1748092538143,3.91818822,2552.2,2552.1,0.25]
[1748092538350,15.66618822,2552.2,2552.1,0.25]
[1748092547763,16.49628822,2552.2,2552.1,0.25]
[1748092548087,4.74828822,2552.2,2552.1,0.25]
[1748092548396,32.2485622,2552.2,2552.1,0.25]
[1748092548686,5.7985622,2552.2,2552.1,0.25]
[1748092548889,32.2485622,2552.2,2552.1,0.25]
[1748092550794,47.02934847,2552.2,2552.1,0.25]
[1748092552410,20.57934847,2552.2,2552.1,0.25]
[1748092552588,42.29293161,2552.2,2552.1,0.25]
[1748092553001,15.84593161,2552.2,2552.1,0.25]
[1748092553314,42.29293161,2552.2,2552.1,0.25]
[1748092553676,42.84293161,2552.2,2552.1,0.25]
[1748092555017,44.67934847,2552.2,2552.1,0.25]
[1748092555219,47.02634847,2552.2,2552.1,0.25]
[1748092559093,20.57934847,2552.2,2552.1,0.25]
[1748092559282,42.29693161,2552.2,2552.1,0.25]
[1748092559479,42.84693161,2552.2,2552.1,0.25]
[1748092560227,47.03034847,2552.2,2552.1,0.25]
[1748092561005,44.64393161,2552.2,2552.1,0.25]
[1748092561540,18.19293161,2552.2,2552.1,0.25]
[1748092561830,15.84593161,2552.2,2552.1,0.25]
[1748092561993,42.29693161,2552.2,2552.1,0.25]
[1748092562428,42.84693161,2552.2,2552.1,0.25]
[1748092562835,45.19393161,2552.2,2552.1,0.25]
[1748092565025,45.19493161,2552.2,2552.1,0.25]
[1748092565403,47.03134847,2552.2,2552.1,0.25]
[1748092568347,3.92126107,2550.2,2550.0,2.43924039]
[1748092568710,15.67326107,2550.2,2550.0,2.43924039]
[1748092569322,20.65705283,2550.2,2550.0,2.43924039]
[1748092569654,3.92172242,2549.9,2549.1,0.25]
[1748092569816,3.92156862,2550.0,2549.1,0.25]
[1748092569817,3.92249156,2549.4,2549.1,0.25]
[1748092570755,3.92249156,2549.4,2549.2,1.83641686]
[1748092570908,3.92249156,2549.4,2549.1,0.25]
[1748092571646,0.8222,2550.1,2549.1,10.08641686]
[1748092571962,3.92233771,2549.5,2549.4,0.8155]
[1748092572174,3.92233771,2549.5,2549.4,24.03802414]
[1748092572454,11.752,2550.0,2549.5,8.0]
[1748092572739,3.92218387,2549.6,2549.5,8.0]
[1748092573039,3.92209466,2549.7,2549.5,8.0]
[1748092573247,3.92218387,2549.6,2549.5,8.0]
[1748092573442,0.8222,2550.4,2549.5,12.68019342]
[1748092573669,3.92206247,2549.7,2549.6,14.705]
[1748092573851,3.92193707,2549.8,2549.7,8.0]
[1748092574167,3.921691,2550.0,2549.8,0.8155]
[1748092574463,3.921691,2550.0,2549.9,0.88155]
[1748092574666,3.92172242,2549.9,2549.8,0.8155]
[1748092574820,3.92172242,2549.9,2549.8,23.5205]
[1748092575032,11.755,2550.3,2549.8,23.5205]
[1748092575356,3.92172242,2549.9,2549.8,23.5205]
[1748092575558,3.9213852,2550.2,2549.8,23.5205]
[1748092575882,4.74210292,2551.1,2550.0,8.0]
[1748092576180,3.92128176,2550.2,2550.0,8.0]
[1748092576686,3.92117584,2550.3,2550.0,8.0]
[1748092576823,3.92130375,2550.2,2550.0,8.0]
[1748092577275,3.92141484,2550.1,2550.0,7.95]
[1748092577574,3.92141484,2550.1,2549.9,2.35205]
[1748092577723,3.92156862,2550.0,2549.9,2.35205]
[1748092578276,3.9216706,2550.0,2549.8,4.6512154]
[1748092578564,3.92141484,2550.1,2549.9,14.707]
[1748092579159,3.92141484,2550.1,2550.0,8.0]
[1748092580664,3.92139624,2550.2,2550.0,8.0]
[1748092580961,3.92141484,2550.1,2550.0,8.0]
[1748092581121,3.92132153,2550.2,2550.0,10.73582154]
[1748092581921,3.92141484,2550.1,2550.0,10.73582154]
[1748092582975,3.92131335,2550.2,2550.0,8.0]
[1748092583174,15.67679291,2550.6,2550.0,8.0]
[1748092583479,3.92141484,2550.1,2550.0,8.0]
[1748092583799,3.92106173,2550.4,2550.1,0.8101]
[1748092584094,11.756,2550.7,2550.1,0.8101]
[1748092584095,11.756,2550.7,2550.2,8.0]
[1748092584255,3.9205635,2550.7,2550.2,8.0]
[1748092584455,3.92064904,2550.6,2550.3,0.8101]
[1748092584750,3.92060582,2550.7,2550.5,8.0]
[1748092585389,3.92044606,2550.8,2550.6,0.7623]
[1748092585599,3.92044606,2550.8,2550.6,3.53410154]
[1748092585891,3.92019248,2550.9,2550.6,3.53410154]
[1748092586066,3.9202667,2550.9,2550.6,3.53410154]
[1748092586264,15.67559812,2551.3,2550.6,3.53410154]
[1748092586265,11.756,2551.3,2550.6,3.53410154]
[1748092586461,3.92034962,2550.8,2550.6,3.53410154]
[1748092586776,3.92029429,2550.9,2550.7,9.12645668]
[1748092588410,3.91957041,2551.3,2550.7,12.96217208]
[1748092588573,3.91957041,2551.3,2550.8,0.7623]
[1748092588768,3.91895599,2551.7,2551.0,8.0]
[1748092588984,4.38366006,2551.8,2550.9,8.0]
[1748092589199,4.38366006,2551.8,2550.7,1.12645668]
[1748092589200,3.92029874,2550.9,2550.7,1.12645668]
[1748092589360,3.92029874,2550.9,2550.8,23.119]
[1748092590032,3.92064612,2550.6,2550.5,0.7623]
[1748092590213,3.92064612,2550.6,2550.5,23.8793]
[1748092590579,3.92064612,2550.6,2550.5,15.8793]
[1748092590790,3.92064612,2550.6,2550.5,23.8793]
[1748092591402,3.92064612,2550.6,2550.5,15.8793]
[1748092591611,3.92064612,2550.6,2550.5,23.8793]
[1748092594080,3.92051362,2550.7,2550.5,23.8793]
[1748092594266,3.92064612,2550.6,2550.5,23.8793]
[1748092594605,3.92054639,2550.7,2550.5,23.8793]
[1748092594779,3.92064612,2550.6,2550.5,23.8793]
[1748092596395,3.92064612,2550.6,2550.5,8.7623]
[1748092596595,3.92064612,2550.6,2550.5,23.8793]
[1748092597774,3.92044428,2550.8,2550.6,8.0]
[1748092598109,3.92049241,2550.7,2550.6,8.0]
[1748092599121,3.91991951,2551.1,2550.6,8.0]
[1748092599303,4.38410596,2551.5,2550.8,3.8357154]
[1748092599503,3.92003843,2551.0,2550.8,3.8357154]
[1748092599717,3.92003843,2551.0,2550.8,5.09883694]
[1748092599922,4.38410596,2551.5,2550.9,8.0]
[1748092599923,3.91995637,2551.1,2550.9,8.0]
[1748092600100,3.91977535,2551.2,2551.1,8.0]
[1748092600822,3.91946794,2551.4,2551.1,8.8209]
[1748092601000,3.91957041,2551.3,2551.1,15.0504054]
[1748092601327,3.91950049,2551.4,2551.1,15.0504054]
[1748092601823,3.91959801,2551.3,2551.1,15.0504054]
[1748092602177,3.91972405,2551.2,2551.1,15.0504054]
[1748092603422,3.91972405,2551.2,2551.1,23.9369]
[1748092607408,3.91957041,2551.3,2551.2,8.0]
[1748092607897,3.91948373,2551.4,2551.2,8.0]
[1748092608097,0.4648176,2551.7,2551.2,8.0]
[1748092608327,3.91950946,2551.4,2551.2,8.0]
[1748092608533,3.91950946,2551.4,2551.2,10.77726154]
[1748092609128,3.91882385,2551.8,2551.3,0.8209]
[1748092609330,3.91937137,2551.5,2551.3,0.8209]
[1748092609550,3.91941679,2551.4,2551.3,0.8209]
[1748092611789,3.91932419,2551.5,2551.3,10.66221779]
[1748092611992,3.91941679,2551.4,2551.3,10.66221779]
[1748092612491,3.92043673,2550.8,2550.7,0.8209]
[1748092612718,3.92049241,2550.7,2550.6,15.112]
[1748092613367,3.92049241,2550.7,2550.6,23.112]
[1748092613741,3.92049241,2550.7,2550.6,15.112]
[1748092613936,3.92049241,2550.7,2550.6,23.112]
[1748092614264,3.92049241,2550.7,2550.6,15.112]
[1748092614671,3.92049241,2550.7,2550.6,23.112]
[1748092615132,3.92033871,2550.8,2550.7,8.0]
[1748092615337,3.92023188,2550.9,2550.7,8.0]
[1748092616362,3.92033871,2550.8,2550.7,8.0]
[1748092619559,3.92009212,2551.0,2550.7,8.0]
[1748092619560,11.753,2551.1,2550.7,8.0]
[1748092619736,3.92009738,2551.0,2550.7,8.0]
[1748092620061,3.91995001,2551.1,2550.7,14.53623407]
[1748092620223,0.4648176,2551.4,2551.1,8.0]
[1748092620430,0.4648176,2551.4,2551.3,12.61956382]
[1748092620937,0.4648176,2551.6,2551.4,8.0]
[1748092621964,3.96876728,2551.9,2551.4,8.0]
[1748092622268,3.91881697,2551.8,2551.6,8.0]
[1748092622565,3.91881697,2551.8,2551.7,15.114]
[1748092623723,3.96872463,2551.9,2551.8,8.0]
[1748092624356,3.91883895,2551.8,2551.6,8.0]
[1748092624556,3.91883895,2551.8,2551.7,24.24664014]